fUSD/lending_fUSD_20250206
["ID","MTS","AMOUNT","RATE_DAILY","PERIOD"]
[351987488,1738869048652,-500.0,0.00016438,2]
[351987489,1738869048662,-1313.34,0.00016438,2]
[351987490,1738869048672,-677.32,0.00016438,2]
[351987491,1738869048682,-500.0,0.00016438,2]
[351987492,1738869048693,-500.0,0.00016438,2]
[351987493,1738869048703,-951.97,0.00016438,2]
[351987494,1738869048715,-500.0,0.00016438,2]
[351987495,1738869048726,-500.0,0.00016438,2]
[351987496,1738869048736,-1245.67,0.00016438,2]
[351987497,1738869048747,-500.0,0.00016438,2]
[351987498,1738869048758,-500.0,0.00016438,2]
[351987499,1738869048768,-500.0,0.00016438,2]
[351987500,1738869048779,-500.0,0.00016438,2]
[351987501,1738869048789,-500.0,0.00016438,2]
[351987502,1738869048799,-729.72,0.00016438,2]
[351987503,1738869048809,-500.0,0.00016438,2]
[351987504,1738869048820,-1576.36,0.00016438,2]
[351987505,1738869048832,-947.89,0.00016438,2]
[351987506,1738869048842,-1217.23,0.00016438,2]
[351987507,1738869048853,-500.0,0.00016438,2]
[351987508,1738869048864,-500.0,0.00016438,2]
[351987509,1738869048873,-500.0,0.00016438,2]
[351987510,1738869048883,-1009.01,0.00016438,2]
[351987511,1738869048892,-500.0,0.00016438,2]
[351987512,1738869048902,-502.81,0.00016438,2]
[351987513,1738869048913,-1132.51,0.00016438,2]
[351987514,1738869048923,-592.17,0.00016438,2]
[351987515,1738869048933,-698.36,0.00016438,2]
[351987516,1738869048943,-714.09,0.00016438,2]
[351987517,1738869048954,-788.72,0.00016438,2]
[351987518,1738869048964,-500.0,0.00016438,2]
[351987519,1738869048974,-1183.22,0.00016438,2]
[351987520,1738869048984,-500.0,0.00016438,2]
[351987521,1738869048995,-1152.38,0.00016438,2]
[351987522,1738869049006,-500.0,0.00016438,2]
[351987523,1738869049016,-797.6,0.00016438,2]
[351987524,1738869049026,-588.41,0.00016438,2]
[351987525,1738869049036,-500.0,0.00016438,2]
[351987526,1738869049047,-555.42,0.00016438,2]
[351987527,1738869049057,-2551.39,0.00016438,2]
[351987528,1738869049066,-887.55,0.00016438,2]
[351987529,1738869049076,-428.5470718,0.00016438,2]
[351987530,1738869049114,-459.0029282,0.00016438,2]
[351987531,1738869049125,-500.0,0.00016438,2]
[351987532,1738869049136,-571.31,0.00016438,2]
[351987533,1738869049146,-759.91,0.00016438,2]
[351987534,1738869049158,-500.0,0.00016438,2]
[351987535,1738869049169,-3041.0,0.00016438,2]
[351987536,1738869049180,-375.4290129,0.00016438,2]
[351987537,1738869049190,-500.0,0.00016438,2]
[351987538,1738869049202,-500.0,0.00016438,2]
[351987539,1738869049213,-500.0,0.00016438,2]
[351987540,1738869049223,-799.86,0.00016438,2]
[351987541,1738869049234,-609.0,0.00016438,2]
[351987542,1738869049244,-532.58676329,0.00016438,2]
[351987543,1738869049266,-1538.05323671,0.00016438,2]
[351987544,1738869049276,-500.0,0.00016438,2]
[351987545,1738869049286,-500.0,0.00016438,2]
[351987546,1738869049296,-500.0,0.00016438,2]
[351987547,1738869049307,-500.0,0.00016438,2]
[351987548,1738869049317,-417.78990335,0.00016438,2]
[351987549,1738869049328,-500.0,0.00016438,2]
[351987550,1738869049339,-500.0,0.00016438,2]
[351987551,1738869049349,-522.23,0.00016438,2]
[351987552,1738869049361,-928.38,0.00016438,2]
[351987553,1738869049372,-500.0,0.00016438,2]
[351987554,1738869049383,-766.76,0.00016438,2]
[351987555,1738869049395,-500.0,0.00016438,2]
[351987556,1738869049405,-716.2,0.00016438,2]
[351987557,1738869049416,-883.93,0.00016438,2]
[351987558,1738869049427,-500.0,0.00016438,2]
[351987559,1738869049438,-552.7,0.00016438,2]
[351987560,1738869049449,-1508.2,0.00016438,2]
[351987561,1738869049459,-516.18,0.00016438,2]
[351987562,1738869049470,-500.0,0.00016438,2]
[351987563,1738869049481,-500.0,0.00016438,2]
[351987564,1738869049493,-1447.02,0.00016438,2]
[351987565,1738869049504,-500.0,0.00016438,2]
[351987566,1738869049515,-500.0,0.00016438,2]
[351987567,1738869049525,-500.0,0.00016438,2]
[351987568,1738869049538,-706.53,0.00016438,2]
[351987569,1738869049548,-500.0,0.00016438,2]
[351987570,1738869049558,-978.65,0.00016438,2]
[351987571,1738869049568,-1153.65,0.00016438,2]
[351987572,1738869049583,-500.0,0.00016438,2]
[351987573,1738869049594,-1914.73,0.00016438,2]
[351987574,1738869049604,-947.99,0.00016438,2]
[351987575,1738869049614,-579.21,0.00016438,2]
[351987576,1738869049625,-628.67,0.00016438,2]
[351987577,1738869049635,-500.0,0.00016438,2]
[351987578,1738869049645,-683.61,0.00016438,2]
[351987579,1738869049655,-1019.47,0.00016438,2]
[351987580,1738869049664,-1070.13,0.00016438,2]
[351987581,1738869049674,-500.0,0.00016438,2]
[351987582,1738869049683,-500.0,0.00016438,2]
[351987583,1738869049693,-500.0,0.00016438,2]
[351987584,1738869049702,-1119.85,0.00016438,2]
[351987585,1738869049712,-1472.07,0.00016438,2]
[351987586,1738869049722,-829.24,0.00016438,2]
[351987587,1738869049732,-1237.8,0.00016438,2]
[351987588,1738869049742,-500.0,0.00016438,2]
[351987589,1738869049752,-768.55,0.00016438,2]
[351987590,1738869049762,-500.0,0.00016438,2]
[351987591,1738869049773,-823.29,0.00016438,2]
[351987592,1738869049782,-3432.47,0.00016438,2]
[351987593,1738869049792,-500.0,0.00016438,2]
[351987594,1738869049802,-500.0,0.00016438,2]
[351987595,1738869049812,-500.0,0.00016438,2]
[351987596,1738869049821,-1124.75,0.00016438,2]
[351987597,1738869049830,-1001.46,0.00016438,2]
[351987598,1738869049844,-500.0,0.00016438,2]
[351987599,1738869049854,-500.0,0.00016438,2]
[351987600,1738869049864,-592.42,0.00016438,2]
[351987601,1738869049874,-1057.54,0.00016438,2]
[351987602,1738869049884,-500.0,0.00016438,2]
[351987603,1738869049894,-781.47,0.00016438,2]
[351987604,1738869049904,-500.0,0.00016438,2]
[351987605,1738869049913,-500.0,0.00016438,2]
[351987606,1738869049924,-1590.71,0.00016438,2]
[351987607,1738869049934,-571.38,0.00016438,2]
[351987608,1738869049944,-500.0,0.00016438,2]
[351987609,1738869049954,-547.46,0.00016438,2]
[351987610,1738869049964,-611.88,0.00016438,2]
[351987611,1738869049973,-500.0,0.00016438,2]
[351987612,1738869049983,-500.0,0.00016438,2]
[351987613,1738869049993,-500.0,0.00016438,2]
[351987614,1738869050002,-500.0,0.00016438,2]
[351987615,1738869050012,-917.36,0.00016438,2]
[351987616,1738869050021,-500.0,0.00016438,2]
[351987617,1738869050031,-2012.37,0.00016438,2]
[351987618,1738869050041,-581.15,0.00016438,2]
[351987619,1738869050051,-500.0,0.00016438,2]
[351987620,1738869050061,-1680.18,0.00016438,2]
[351987621,1738869050071,-1207.36,0.00016438,2]
[351987622,1738869050084,-581.67,0.00016438,2]
[351987623,1738869050094,-1132.12,0.00016438,2]
[351987624,1738869050104,-500.0,0.00016438,2]
[351987625,1738869050114,-500.0,0.00016438,2]
[351987626,1738869050185,-500.0,0.00016438,2]
[351987627,1738869050195,-1498.04,0.00016438,2]
[351987628,1738869050204,-500.0,0.00016438,2]
[351987629,1738869050214,-500.0,0.00016438,2]
[351987630,1738869050223,-500.0,0.00016438,2]
[351987631,1738869050232,-500.63898947,0.00016438,2]
[351987632,1738869050241,-1513.16,0.00016438,2]
[351987633,1738869050251,-925.3,0.00016438,2]
[351987634,1738869050261,-500.0,0.00016438,2]
[351987635,1738869050271,-555.4992663,0.00016438,2]
[351987636,1738869050280,-2321.43,0.00016438,2]
[351987637,1738869050290,-501.51410658,0.00016438,2]
[351987638,1738869050300,-530.46,0.00016438,2]
[351987639,1738869050310,-751.5,0.00016438,2]
[351987640,1738869050319,-819.37,0.00016438,2]
[351987641,1738869050329,-500.78145216,0.00016438,2]
[351987642,1738869050340,-1131.41,0.00016438,2]
[351987643,1738869050350,-516.32,0.00016438,2]
[351987644,1738869050360,-500.46255195,0.00016438,2]
[351987645,1738869050371,-598.95,0.00016438,2]
[351987646,1738869050381,-500.0,0.00016438,2]
[351987647,1738869050390,-500.0,0.00016438,2]
[351987648,1738869050400,-500.38835627,0.00016438,2]
[351987649,1738869050411,-500.0,0.00016438,2]
[351987650,1738869050421,-530.63729798,0.00016438,2]
[351987651,1738869050430,-500.0,0.00016438,2]
[351987652,1738869050439,-500.0,0.00016438,2]
[351987653,1738869050449,-1000.0,0.00016438,2]
[351987654,1738869050458,-887.03,0.00016438,2]
[351987655,1738869050468,-500.0,0.00016438,2]
[351987656,1738869050478,-500.41949387,0.00016438,2]
[351987657,1738869050493,-1716.92,0.00016438,2]
[351987658,1738869050502,-500.0,0.00016438,2]
[351987659,1738869050512,-750.35,0.00016438,2]
[351987660,1738869050522,-500.4947107,0.00016438,2]
[351987661,1738869050533,-500.0,0.00016438,2]
[351987662,1738869050543,-500.0,0.00016438,2]
[351987663,1738869050553,-985.16,0.00016438,2]
[351987664,1738869050564,-500.0,0.00016438,2]
[351987665,1738869050574,-1146.94,0.00016438,2]
[351987666,1738869050586,-500.0,0.00016438,2]
[351987667,1738869050596,-500.0,0.00016438,2]
[351987668,1738869050605,-500.70181692,0.00016438,2]
[351987669,1738869050616,-500.0,0.00016438,2]
[351987670,1738869050625,-500.0,0.00016438,2]
[351987671,1738869050635,-500.0,0.00016438,2]
[351987672,1738869050644,-1926.78,0.00016438,2]
[351987673,1738869050655,-1123.01,0.00016438,2]
[351987674,1738869050665,-500.0,0.00016438,2]
[351987675,1738869050674,-500.0,0.00016438,2]
[351987676,1738869050684,-500.0,0.00016438,2]
[351987677,1738869050694,-500.0,0.00016438,2]
[351987678,1738869050703,-849.89,0.00016438,2]
[351987679,1738869050712,-774.75,0.00016438,2]
[351987680,1738869050722,-500.0,0.00016438,2]
[351987681,1738869050734,-500.0,0.00016438,2]
[351987682,1738869050743,-910.06,0.00016438,2]
[351987683,1738869050754,-500.0,0.00016438,2]
[351987684,1738869050763,-750.33,0.00016438,2]
[351987685,1738869050774,-608.94,0.00016438,2]
[351987686,1738869050784,-1462.54,0.00016438,2]
[351987687,1738869050793,-543.86,0.00016438,2]
[351987688,1738869050803,-500.0,0.00016438,2]
[351987689,1738869050813,-500.0,0.00016438,2]
[351987690,1738869050822,-561.62,0.00016438,2]
[351987691,1738869050831,-467.08097955,0.00016438,2]
[351987692,1738869050842,-501.29961294,0.00016438,2]
[351987693,1738869050851,-500.0,0.00016438,2]
[351987694,1738869050861,-527.28,0.00016438,2]
[351987695,1738869050870,-500.0,0.00016438,2]
[351987696,1738869050880,-500.0,0.00016438,2]
[351987697,1738869050889,-500.0,0.00016438,2]
[351987698,1738869050899,-500.95111311,0.00016438,2]
[351987699,1738869050908,-726.86,0.00016438,2]
[351987700,1738869050918,-500.0,0.00016438,2]
[351987701,1738869050927,-500.0,0.00016438,2]
[351987702,1738869050936,-871.24,0.00016438,2]
[351987703,1738869050945,-500.0,0.00016438,2]
[351987704,1738869050954,-839.79,0.00016438,2]
[351987705,1738869050964,-639.6,0.00016438,2]
[351987706,1738869050973,-679.77,0.00016438,2]
[351987707,1738869050982,-500.0,0.00016438,2]
[351987708,1738869050991,-774.5,0.00016438,2]
[351987709,1738869051000,-500.0,0.00016438,2]
[351987710,1738869051009,-500.0,0.00016438,2]
[351987711,1738869051019,-501.11487766,0.00016438,2]
[351987712,1738869051028,-500.0,0.00016438,2]
[351987713,1738869051038,-2032.98,0.00016438,2]
[351987714,1738869051047,-500.0,0.00016473,2]
[351987715,1738869051056,-500.0,0.00016473,2]
[351987716,1738869051066,-162.28519442,0.00016473,2]
[351987717,1738869051075,-150.0,0.00016498,2]
[351987718,1738869051087,-500.0,0.00016574,2]
[351987719,1738869051096,-500.0,0.00016574,2]
[351987720,1738869051105,-500.0,0.00016574,2]
[351987721,1738869051115,-500.0,0.00016574,2]
[351987722,1738869051124,-887.55,0.00016574,2]
[351987723,1738869051133,-170.418657,0.00016575,2]
[351987724,1738869051143,-500.0,0.00016575,2]
[351987725,1738869051152,-500.0,0.00016575,2]
[351987726,1738869051162,-200.145142,0.00016575,2]
[351987727,1738869051173,-500.0,0.00016575,2]
[351987728,1738869051183,-572.06345749,0.00016575,2]
[351987729,1738869051192,-500.0,0.00016575,2]
[351987730,1738869051202,-536.13,0.00016575,2]
[351987731,1738869051211,-500.0,0.00016575,2]
[351987732,1738869051222,-500.0,0.00016575,2]
[351987733,1738869051231,-500.0,0.00016575,2]
[351987734,1738869051242,-500.0,0.00016575,2]
[351987735,1738869051252,-500.0,0.00016575,2]
[351987736,1738869051262,-500.0,0.00016575,2]
[351987737,1738869051271,-500.0,0.00016575,2]
[351987738,1738869051282,-500.0,0.00016575,2]
[351987739,1738869051291,-500.0,0.00016575,2]
[351987740,1738869051301,-500.0,0.00016575,2]
[351987741,1738869051310,-658.15,0.00016575,2]
[351987742,1738869051320,-500.0,0.00016575,2]
[351987743,1738869051330,-500.0,0.00016575,2]
[351987744,1738869051342,-500.0,0.00016575,2]
[351987745,1738869051352,-500.0,0.00016575,2]
[351987746,1738869051362,-500.0,0.00016575,2]
[351987747,1738869051372,-500.0,0.00016575,2]
[351987748,1738869051381,-503.29427738,0.00016575,2]
[351987749,1738869051391,-500.0,0.00016575,2]
[351987750,1738869051400,-803.61,0.00016575,2]
[351987751,1738869051410,-500.0,0.00016575,2]
[351987752,1738869051419,-500.0,0.00016575,2]
[351987753,1738869051429,-544.03,0.00016575,2]
[351987754,1738869051439,-500.0,0.00016575,2]
[351987755,1738869051449,-500.0,0.00016575,2]
[351987756,1738869051459,-500.0,0.00016575,2]
[351987757,1738869051468,-500.0,0.00016575,2]
[351987758,1738869051478,-500.0,0.00016575,2]
[351987759,1738869051488,-500.0,0.00016575,2]
[351987760,1738869051501,-500.0,0.00016575,2]
[351987761,1738869051510,-500.0,0.00016575,2]
[351987762,1738869051520,-500.0,0.00016575,2]
[351987763,1738869051530,-546.29,0.00016575,2]
[351987764,1738869051539,-500.0,0.00016575,2]
[351987765,1738869051549,-500.0,0.00016575,2]
[351987766,1738869051559,-500.0,0.00016575,2]
[351987767,1738869051569,-500.0,0.00016575,2]
[351987768,1738869051578,-500.0,0.00016575,2]
[351987769,1738869051589,-500.0,0.00016575,2]
[351987770,1738869051598,-500.0,0.00016575,2]
[351987771,1738869051608,-500.0,0.00016575,2]
[351987772,1738869051617,-705.77,0.00016575,2]
[351987773,1738869051627,-500.0,0.00016575,2]
[351987774,1738869051638,-500.0,0.00016575,2]
[351987775,1738869051647,-500.0,0.00016575,2]
[351987776,1738869051656,-500.0,0.00016575,2]
[351987777,1738869051665,-500.0,0.00016575,2]
[351987778,1738869051674,-500.0,0.00016575,2]
[351987779,1738869051683,-572.78,0.00016575,2]
[351987780,1738869051693,-500.0,0.00016575,2]
[351987781,1738869051702,-500.0,0.00016575,2]
[351987782,1738869051711,-500.0,0.00016575,2]
[351987783,1738869051720,-500.0,0.00016575,2]
[351987784,1738869051730,-500.0,0.00016575,2]
[351987785,1738869051739,-500.0,0.00016575,2]
[351987786,1738869051748,-500.0,0.00016575,2]
[351987787,1738869051758,-500.0,0.00016575,2]
[351987788,1738869051767,-500.0,0.00016575,2]
[351987789,1738869051776,-431.66,0.00016575,2]
[351987790,1738869051787,-500.0,0.00016575,2]
[351987791,1738869051796,-625.43,0.00016575,2]
[351987792,1738869051805,-500.0,0.00016575,2]
[351987793,1738869051814,-500.0,0.00016575,2]
[351987794,1738869051823,-500.0,0.00016575,2]
[351987795,1738869051832,-500.0,0.00016575,2]
[351987796,1738869051842,-500.0,0.00016575,2]
[351987797,1738869051851,-500.0,0.00016575,2]
[351987798,1738869051860,-595.98,0.00016575,2]
[351987799,1738869051870,-500.0,0.00016575,2]
[351987800,1738869051879,-500.0,0.00016575,2]
[351987801,1738869051888,-500.0,0.00016575,2]
[351987802,1738869051898,-500.0,0.00016575,2]
[351987803,1738869051907,-514.04,0.00016575,2]
[351987804,1738869051917,-297.93,0.00016575,2]
[351987805,1738869051926,-500.0,0.00016575,2]
[351987806,1738869051937,-546.26205649,0.00016575,2]
[351987807,1738869051947,-500.0,0.00016575,2]
[351987808,1738869051958,-500.0,0.00016575,2]
[351987809,1738869051968,-500.0,0.00016575,2]
[351987810,1738869051979,-757.6,0.00016575,2]
[351987811,1738869051989,-500.0,0.00016575,2]
[351987812,1738869052001,-1291.91,0.00016575,2]
[351987813,1738869052012,-500.0,0.00016575,2]
[351987814,1738869052021,-505.03,0.00016575,2]
[351987815,1738869052031,-500.0,0.00016575,2]
[351987816,1738869052041,-589.32,0.00016575,2]
[351987817,1738869052051,-682.29,0.00016575,2]
[351987818,1738869052061,-500.0,0.00016575,2]
[351987819,1738869052071,-245.20971274,0.00016575,2]
[351987820,1738869052082,-500.0,0.00016575,2]
[351987821,1738869052092,-500.0,0.00016575,2]
[351987822,1738869052102,-500.86,0.00016575,2]
[351987823,1738869052111,-500.0,0.00016575,2]
[351987824,1738869052121,-500.0,0.00016575,2]
[351987825,1738869052133,-500.0,0.00016575,2]
[351987826,1738869052142,-500.0,0.00016575,2]
[351987827,1738869052151,-666.89,0.00016575,2]
[351987828,1738869052161,-500.0,0.00016575,2]
[351987829,1738869052171,-500.0,0.00016575,2]
[351987830,1738869052181,-500.0,0.00016575,2]
[351987831,1738869052191,-500.0,0.00016575,2]
[351987832,1738869052202,-603.10583091,0.00016575,2]
[351987833,1738869052212,-500.0,0.00016575,2]
[351987834,1738869052222,-500.0,0.00016575,2]
[351987835,1738869052232,-500.0,0.00016575,2]
[351987836,1738869052243,-500.0,0.00016575,2]
[351987837,1738869052252,-500.0,0.00016575,2]
[351987838,1738869052268,-341.06892373,0.00016575,2]
[351987839,1738869052278,-500.0,0.00016575,2]
[351987840,1738869052288,-500.0,0.00016575,2]
[351987841,1738869052298,-500.0,0.00016575,2]
[351987842,1738869052307,-500.0,0.00016575,2]
[351987843,1738869052317,-500.0,0.00016575,2]
[351987844,1738869052327,-500.0,0.00016575,2]
[351987845,1738869052338,-500.0,0.00016575,2]
[351987846,1738869052348,-500.0,0.00016575,2]
[351987847,1738869052357,-500.0,0.00016575,2]
[351987848,1738869052367,-500.0,0.00016575,2]
[351987849,1738869052377,-500.0,0.00016575,2]
[351987850,1738869052387,-500.0,0.00016575,2]
[351987851,1738869052398,-500.0,0.00016575,2]
[351987852,1738869052407,-658.41,0.00016575,2]
[351987853,1738869052417,-500.0,0.00016575,2]
[351987854,1738869052427,-500.0,0.00016575,2]
[351987855,1738869052437,-500.0,0.00016575,2]
[351987856,1738869052446,-500.0,0.00016575,2]
[351987857,1738869052456,-500.0,0.00016575,2]
[351987858,1738869052466,-500.0,0.00016575,2]
[351987859,1738869052475,-637.66823242,0.00016575,2]
[351987860,1738869052487,-649.15,0.00016575,2]
[351987861,1738869052498,-500.0,0.00016575,2]
[351987862,1738869052507,-500.0,0.00016575,2]
[351987863,1738869052517,-500.0,0.00016575,2]
[351987864,1738869052527,-500.0,0.00016575,2]
[351987865,1738869052536,-500.0,0.00016575,2]
[351987866,1738869052546,-500.0,0.00016575,2]
[351987867,1738869052556,-682.77,0.00016575,2]
[351987868,1738869052566,-500.0,0.00016575,2]
[351987869,1738869052575,-500.0,0.00016575,2]
[351987870,1738869052587,-500.0,0.00016575,2]
[351987871,1738869052596,-500.0,0.00016575,2]
[351987872,1738869052605,-638.12,0.00016575,2]
[351987873,1738869052615,-500.0,0.00016575,2]
[351987874,1738869052625,-809.52,0.00016575,2]
[351987875,1738869052634,-749.62,0.00016575,2]
[351987876,1738869052644,-500.0,0.00016575,2]
[351987877,1738869052654,-500.0,0.00016575,2]
[351987878,1738869052663,-500.0,0.00016575,2]
[351987879,1738869052673,-500.0,0.00016575,2]
[351987880,1738869052682,-605.07,0.00016575,2]
[351987881,1738869052692,-500.0,0.00016575,2]
[351987882,1738869052701,-500.0,0.00016575,2]
[351987883,1738869052711,-188.61165431,0.00016575,2]
[351987884,1738869052720,-500.0,0.00016575,2]
[351987885,1738869052730,-500.0,0.00016575,2]
[351987886,1738869052739,-500.0,0.00016575,2]
[351987887,1738869052749,-500.0,0.00016575,2]
[351987888,1738869052758,-500.0,0.00016575,2]
[351987889,1738869052768,-500.0,0.00016575,2]
[351987890,1738869052777,-500.0,0.00016575,2]
[351987891,1738869052786,-500.0,0.00016575,2]
[351987892,1738869052796,-500.0,0.00016575,2]
[351987893,1738869052805,-671.3,0.00016575,2]
[351987894,1738869052815,-500.0,0.00016575,2]
[351987895,1738869052824,-500.0,0.00016575,2]
[351987896,1738869052834,-500.0,0.00016575,2]
[351987897,1738869052844,-500.0,0.00016575,2]
[351987898,1738869052854,-500.0,0.00016575,2]
[351987899,1738869052863,-500.0,0.00016575,2]
[351987900,1738869052873,-500.0,0.00016575,2]
[351987901,1738869052883,-500.0,0.00016575,2]
[351987902,1738869052893,-500.0,0.00016575,2]
[351987903,1738869052903,-500.0,0.00016575,2]
[351987904,1738869052912,-727.24,0.00016575,2]
[351987905,1738869052922,-500.0,0.00016575,2]
[351987906,1738869052931,-500.0,0.00016575,2]
[351987907,1738869052941,-595.86,0.00016575,2]
[351987908,1738869052951,-500.0,0.00016575,2]
[351987909,1738869052960,-500.0,0.00016575,2]
[351987910,1738869052971,-500.0,0.00016575,2]
[351987911,1738869052981,-500.0,0.00016575,2]
[351987912,1738869052990,-736.27,0.00016575,2]
[351987913,1738869053000,-782.84,0.00016575,2]
[351987914,1738869053010,-546.92,0.00016575,2]
[351987915,1738869053020,-500.0,0.00016575,2]
[351987916,1738869053029,-500.0,0.00016575,2]
[351987917,1738869053039,-500.0,0.00016575,2]
[351987918,1738869053049,-561.78,0.00016575,2]
[351987919,1738869053059,-1313.34,0.00016575,2]
[351987920,1738869053068,-677.32,0.00016575,2]
[351987921,1738869053078,-500.0,0.00016575,2]
[351987922,1738869053090,-500.0,0.00016575,2]
[351987923,1738869053100,-951.97,0.00016575,2]
[351987924,1738869053110,-500.0,0.00016575,2]
[351987925,1738869053120,-500.0,0.00016575,2]
[351987926,1738869053130,-1245.67,0.00016575,2]
[351987927,1738869053140,-500.0,0.00016575,2]
[351987928,1738869053150,-500.0,0.00016575,2]
[351987929,1738869053164,-729.72,0.00016575,2]
[351987930,1738869053175,-1576.36,0.00016575,2]
[351987931,1738869053186,-947.89,0.00016575,2]
[351987932,1738869053196,-1217.23,0.00016575,2]
[351987933,1738869053207,-500.0,0.00016575,2]
[351987934,1738869053217,-500.0,0.00016575,2]
[351987935,1738869053227,-1009.01,0.00016575,2]
[351987936,1738869053238,-502.81,0.00016575,2]
[351987937,1738869053248,-500.0,0.00016575,2]
[351987938,1738869053258,-1132.51,0.00016575,2]
[351987939,1738869053268,-592.17,0.00016575,2]
[351987940,1738869053279,-698.36,0.00016575,2]
[351987941,1738869053289,-714.09,0.00016575,2]
[351987942,1738869053299,-788.72,0.00016575,2]
[351987943,1738869053310,-500.0,0.00016575,2]
[351987944,1738869053320,-1183.22,0.00016575,2]
[351987945,1738869053330,-500.0,0.00016575,2]
[351987946,1738869053344,-1152.38,0.00016575,2]
[351987947,1738869053354,-288.60526992,0.00016575,2]
[351987948,1738869053364,-797.6,0.00016575,2]
[351987949,1738869053374,-588.41,0.00016575,2]
[351987950,1738869053384,-555.42,0.00016575,2]
[351987951,1738869053395,-2551.39,0.00016575,2]
[351987952,1738869053404,-500.0,0.00016575,2]
[351987953,1738869053415,-571.31,0.00016575,2]
[351987954,1738869053424,-759.91,0.00016575,2]
[351987955,1738869053435,-500.0,0.00016575,2]
[351987956,1738869053445,-3041.0,0.00016575,2]
[351987957,1738869053454,-500.0,0.00016575,2]
[351987958,1738869053463,-500.0,0.00016575,2]
[351987959,1738869053472,-799.86,0.00016575,2]
[351987960,1738869053482,-609.0,0.00016575,2]
[351987961,1738869053493,-2070.64,0.00016575,2]
[351987962,1738869053503,-500.0,0.00016575,2]
[351987963,1738869053514,-500.0,0.00016575,2]
[351987964,1738869053525,-500.0,0.00016575,2]
[351987965,1738869053535,-500.0,0.00016575,2]
[351987966,1738869053546,-522.23,0.00016575,2]
[351987967,1738869053557,-928.38,0.00016575,2]
[351987968,1738869053568,-500.0,0.00016575,2]
[351987969,1738869053578,-766.76,0.00016575,2]
[351987970,1738869053593,-716.2,0.00016575,2]
[351987971,1738869053605,-883.93,0.00016575,2]
[351987972,1738869053615,-500.0,0.00016575,2]
[351987973,1738869053626,-552.7,0.00016575,2]
[351987974,1738869053636,-1508.2,0.00016575,2]
[351987975,1738869053646,-516.18,0.00016575,2]
[351987976,1738869053656,-500.0,0.00016575,2]
[351987977,1738869053667,-500.0,0.00016575,2]
[351987978,1738869053677,-1447.02,0.00016575,2]
[351987979,1738869053687,-500.0,0.00016575,2]
[351987980,1738869053697,-500.0,0.00016575,2]
[351987981,1738869053707,-500.0,0.00016575,2]
[351987982,1738869053716,-706.53,0.00016575,2]
[351987983,1738869053726,-500.0,0.00016575,2]
[351987984,1738869053736,-978.65,0.00016575,2]
[351987985,1738869053746,-1153.65,0.00016575,2]
[351987986,1738869053756,-500.0,0.00016575,2]
[351987987,1738869053766,-1914.73,0.00016575,2]